fUSD/lending_fUSD_20250811
["ID","MTS","AMOUNT","RATE_DAILY","PERIOD"]
[378611466,1754926237057,-861.09,0.00016438,2]
[378611467,1754926237067,-400.0,0.00016438,2]
[378611468,1754926237078,-400.0,0.00016438,2]
[378611469,1754926237088,-572.83,0.00016438,2]
[378611470,1754926237098,-641.12,0.00016438,2]
[378611471,1754926237107,-400.0,0.00016438,2]
[378611472,1754926237117,-400.0,0.00016438,2]
[378611473,1754926237127,-1731.78,0.00016438,2]
[378611474,1754926237137,-400.0,0.00016438,2]
[378611475,1754926237147,-600.93,0.00016438,2]
[378611476,1754926237156,-478.64,0.00016438,2]
[378611477,1754926237166,-400.0,0.00016438,2]
[378611478,1754926237176,-500.0,0.00016438,2]
[378611486,1754926237511,-500.0,0.00016438,2]
[378611487,1754926237522,-400.0,0.00016438,2]
[378611488,1754926237534,-741.77,0.00016438,2]
[378611489,1754926237543,-400.0,0.00016438,2]
[378611490,1754926237553,-656.12,0.00016438,2]
[378611491,1754926237564,-420.71,0.00016438,2]
[378611492,1754926237573,-400.0,0.00016438,2]
[378611493,1754926237583,-2234.21,0.00016438,2]
[378611494,1754926237593,-151.0,0.00016438,2]
[378611495,1754926237602,-818.03,0.00016438,2]
[378611496,1754926237612,-772.12,0.00016438,2]
[378611497,1754926237621,-816.21,0.00016438,2]
[378611498,1754926237631,-673.34,0.00016438,2]
[378611499,1754926237640,-400.0,0.00016438,2]
[378611500,1754926237650,-447.26,0.00016438,2]
[378611501,1754926237659,-400.0,0.00016438,2]
[378611502,1754926237669,-400.0,0.00016438,2]
[378611503,1754926237679,-400.0,0.00016438,2]
[378611504,1754926237689,-195.47758617,0.00016438,2]
[378611505,1754926237698,-400.0,0.00016438,2]
[378611506,1754926237709,-400.0,0.00016438,2]
[378611507,1754926237719,-400.0,0.00016438,2]
[378611508,1754926237728,-400.0,0.00016438,2]
[378611509,1754926237738,-400.0,0.00016438,2]
[378611510,1754926237747,-400.0,0.00016438,2]
[378611511,1754926237757,-820.67,0.00016438,2]
[378611512,1754926237767,-583.88,0.00016438,2]
[378611513,1754926237776,-400.0,0.00016438,2]
[378611514,1754926237785,-663.88,0.00016438,2]
[378611515,1754926237795,-400.0,0.00016438,2]
[378611516,1754926237804,-400.0,0.00016438,2]
[378611517,1754926237814,-500.0,0.00016438,2]
[378611518,1754926237823,-500.0,0.00016438,2]
[378611519,1754926237832,-460.0,0.00016438,2]
[378611520,1754926237845,-440.6,0.00016438,2]
[378611521,1754926237855,-769.14,0.00016438,2]
[378611522,1754926237864,-400.0,0.00016438,2]
[378611523,1754926237874,-400.0,0.00016438,2]
[378611524,1754926237883,-400.0,0.00016438,2]
[378611525,1754926237893,-400.0,0.00016438,2]
[378611526,1754926237903,-519.09,0.00016438,2]
[378611527,1754926237912,-400.0,0.00016438,2]
[378611529,1754926237922,-991.62,0.00016438,2]
[378611531,1754926237931,-400.0,0.00016438,2]
[378611533,1754926237940,-400.0,0.00016438,2]
[378611536,1754926237949,-528.63,0.00016438,2]
[378611538,1754926237960,-618.46,0.00016438,2]
[378611540,1754926237969,-400.0,0.00016438,2]
[378611542,1754926237979,-400.0,0.00016438,2]
[378611544,1754926237988,-546.61,0.00016438,2]
[378611546,1754926237998,-405.7,0.00016438,2]
[378611548,1754926238007,-400.0,0.00016438,2]
[378611550,1754926238016,-400.0,0.00016438,2]
[378611552,1754926238026,-400.0,0.00016438,2]
[378611554,1754926238035,-506.08,0.00016438,2]
[378611556,1754926238044,-400.0,0.00016438,2]
[378611557,1754926238053,-400.0,0.00016438,2]
[378611559,1754926238063,-400.0,0.00016438,2]
[378611562,1754926238072,-571.88,0.00016438,2]
[378611564,1754926238082,-423.37,0.00016438,2]
[378611565,1754926238091,-1643.89,0.00016438,2]
[378611567,1754926238100,-400.0,0.00016438,2]
[378611569,1754926238109,-400.0,0.00016438,2]
[378611571,1754926238119,-400.0,0.00016438,2]
[378611573,1754926238128,-404.16,0.00016438,2]
[378611575,1754926238137,-400.0,0.00016438,2]
[378611577,1754926238147,-400.0,0.00016438,2]
[378611579,1754926238156,-400.0,0.00016438,2]
[378611581,1754926238166,-400.0,0.00016438,2]
[378611583,1754926238176,-400.0,0.00016438,2]
[378611585,1754926238185,-400.0,0.00016438,2]
[378611587,1754926238195,-400.0,0.00016438,2]
[378611589,1754926238204,-400.0,0.00016438,2]
[378611591,1754926238214,-400.0,0.00016438,2]
[378611593,1754926238223,-400.0,0.00016438,2]
[378611595,1754926238233,-992.5,0.00016438,2]
[378611597,1754926238242,-574.03,0.00016438,2]
[378611599,1754926238252,-400.0,0.00016438,2]
[378611601,1754926238261,-473.01,0.00016438,2]
[378611603,1754926238271,-544.99,0.00016438,2]
[378611605,1754926238281,-400.0,0.00016438,2]
[378611607,1754926238291,-361.45105248,0.00016438,2]
[378611609,1754926238300,-400.0,0.00016438,2]
[378611611,1754926238310,-616.33,0.00016438,2]
[378611613,1754926238319,-427.05,0.00016438,2]
[378611615,1754926238329,-569.48,0.00016438,2]
[378611617,1754926238339,-400.0,0.00016438,2]
[378611618,1754926238350,-400.0,0.00016438,2]
[378611620,1754926238362,-895.14,0.00016438,2]
[378611622,1754926238372,-400.0,0.00016438,2]
[378611624,1754926238382,-400.0,0.00016438,2]
[378611626,1754926238391,-2341.82,0.00016438,2]
[378611628,1754926238401,-400.0,0.00016438,2]
[378611630,1754926238411,-400.0,0.00016438,2]
[378611632,1754926238420,-681.87,0.00016438,2]
[378611634,1754926238430,-1249.77,0.00016438,2]
[378611636,1754926238440,-400.0,0.00016438,2]
[378611638,1754926238449,-400.0,0.00016438,2]
[378611640,1754926238460,-512.16,0.00016438,2]
[378611643,1754926238469,-400.0,0.00016438,2]
[378611646,1754926238479,-400.0,0.00016438,2]
[378611648,1754926238488,-400.0,0.00016438,2]
[378611650,1754926238498,-400.0,0.00016438,2]
[378611652,1754926238507,-400.0,0.00016438,2]
[378611654,1754926238517,-400.0,0.00016438,2]
[378611656,1754926238526,-400.0,0.00016438,2]
[378611658,1754926238536,-533.81,0.00016438,2]
[378611660,1754926238545,-529.21,0.00016438,2]
[378611662,1754926238555,-400.0,0.00016438,2]
[378611664,1754926238564,-157.64708987,0.00016438,2]
[378611666,1754926238574,-400.0,0.00016438,2]
[378611668,1754926238584,-400.0,0.00016438,2]
[378611670,1754926238593,-400.0,0.00016438,2]
[378611672,1754926238603,-978.37,0.00016438,2]
[378611674,1754926238612,-400.0,0.00016438,2]
[378611676,1754926238622,-400.0,0.00016438,2]
[378611678,1754926238631,-400.0,0.00016438,2]
[378611680,1754926238640,-151.0,0.00016438,2]
[378611682,1754926238649,-400.0,0.00016438,2]
[378611684,1754926238658,-400.0,0.00016438,2]
[378611686,1754926238667,-952.03,0.00016438,2]
[378611688,1754926238676,-400.0,0.00016438,2]
[378611690,1754926238686,-400.0,0.00016438,2]
[378611692,1754926238696,-400.0,0.00016438,2]
[378611693,1754926238707,-400.0,0.00016438,2]
[378611696,1754926238717,-400.0,0.00016438,2]
[378611697,1754926238726,-400.0,0.00016438,2]
[378611700,1754926238736,-400.0,0.00016438,2]
[378611701,1754926238746,-400.0,0.00016438,2]
[378611703,1754926238756,-400.0,0.00016438,2]
[378611705,1754926238766,-400.0,0.00016438,2]
[378611707,1754926238775,-400.0,0.00016438,2]
[378611709,1754926238785,-400.0,0.00016438,2]
[378611711,1754926238795,-737.71,0.00016438,2]
[378611713,1754926238805,-400.0,0.00016438,2]
[378611716,1754926238815,-902.78,0.00016438,2]
[378611718,1754926238824,-1009.72,0.00016438,2]
[378611719,1754926238833,-400.0,0.00016438,2]
[378611721,1754926238842,-528.3,0.00016438,2]
[378611723,1754926238852,-400.0,0.00016438,2]
[378611726,1754926238861,-757.29,0.00016438,2]
[378611727,1754926238871,-400.0,0.00016438,2]
[378611730,1754926238880,-400.0,0.00016438,2]
[378611731,1754926238890,-400.0,0.00016438,2]
[378611733,1754926238899,-406.18,0.00016438,2]
[378611735,1754926238909,-400.0,0.00016438,2]
[378611737,1754926238918,-400.0,0.00016438,2]
[378611739,1754926238927,-1000.0,0.00016438,2]
[378611741,1754926238936,-400.0,0.00016438,2]
[378611743,1754926238946,-400.0,0.00016438,2]
[378611745,1754926238956,-400.0,0.00016438,2]
[378611747,1754926238966,-400.0,0.00016438,2]
[378611750,1754926238979,-400.0,0.00016438,2]
[378611752,1754926238989,-189.3932141,0.00016438,2]
[378611754,1754926238999,-400.0,0.00016438,2]
[378611756,1754926239009,-587.38,0.00016438,2]
[378611758,1754926239019,-400.0,0.00016438,2]
[378611760,1754926239030,-400.0,0.00016438,2]
[378611762,1754926239039,-400.0,0.00016438,2]
[378611764,1754926239049,-284.51253074,0.00016438,2]
[378611770,1754926239094,-115.48746926,0.00016438,2]
[378611772,1754926239105,-286.6717127,0.00016438,2]
[378611912,1754926240653,-113.3282873,0.00016438,2]
[378611914,1754926240663,-400.0,0.00016438,2]
[378611916,1754926240672,-657.61358892,0.00016438,2]
[378611919,1754926240696,-845.85641108,0.00016438,2]
[378611921,1754926240709,-495.84,0.00016438,2]
[378611923,1754926240719,-555.62,0.00016438,2]
[378611925,1754926240729,-444.91010361,0.00016438,2]
[378611927,1754926240739,-400.0,0.00016438,2]
[378611929,1754926240748,-744.13,0.00016438,2]
[378611931,1754926240758,-686.7,0.00016438,2]
[378611933,1754926240767,-400.0,0.00016438,2]
[378611935,1754926240778,-400.0,0.00016438,2]
[378611937,1754926240788,-754.65,0.00016438,2]
[378611939,1754926240797,-400.0,0.00016438,2]
[378611941,1754926240807,-400.0,0.00016438,2]
[378611943,1754926240816,-999.44,0.00016438,2]
[378611945,1754926240826,-400.0,0.00016438,2]
[378611947,1754926240836,-599.36,0.00016438,2]
[378611949,1754926240845,-542.51336683,0.00016438,2]
[378611951,1754926240854,-400.0,0.00016438,2]
[378611953,1754926240863,-183.171588,0.00016438,2]
[378611955,1754926240873,-400.0,0.00016438,2]
[378611957,1754926240883,-400.0,0.00016438,2]
[378611959,1754926240894,-400.0,0.00016438,2]
[378611961,1754926240905,-708.7,0.00016438,2]
[378611963,1754926240914,-1025.55,0.00016438,2]
[378611965,1754926240923,-556.67,0.00016438,2]
[378611967,1754926240933,-400.0,0.00016438,2]
[378611969,1754926240942,-400.0,0.00016438,2]
[378611971,1754926240951,-1917.67,0.00016438,2]
[378611973,1754926240963,-400.0,0.00016438,2]
[378611975,1754926240973,-324.14862153,0.00016438,2]
[378611977,1754926240982,-414.04,0.00016438,2]
[378611978,1754926240997,-400.0,0.00016438,2]
[378611980,1754926241006,-396.68754065,0.00016438,2]
[378611982,1754926241015,-400.0,0.00016438,2]
[378611984,1754926241025,-400.0,0.00016438,2]
[378611987,1754926241035,-400.0,0.00016438,2]
[378611989,1754926241044,-400.0,0.00016438,2]
[378611991,1754926241055,-400.0,0.00016438,2]
[378611993,1754926241067,-400.0,0.00016438,2]
[378611994,1754926241077,-400.0,0.00016438,2]
[378611997,1754926241087,-400.0,0.00016438,2]
[378611998,1754926241097,-400.0,0.00016438,2]
[378612001,1754926241107,-400.0,0.00016438,2]
[378612003,1754926241120,-645.99,0.00016438,2]
[378612005,1754926241130,-1169.67,0.00016438,2]
[378612007,1754926241141,-286.88001177,0.00016438,2]
[378612009,1754926241150,-423.34368527,0.00016438,2]
[378612011,1754926241160,-813.67,0.00016438,2]
[378612013,1754926241169,-400.0,0.00016438,2]
[378612015,1754926241179,-422.83,0.00016438,2]
[378612017,1754926241189,-151.0,0.00016438,2]
[378612019,1754926241198,-456.22,0.00016438,2]
[378612021,1754926241209,-400.0,0.00016438,2]
[378612023,1754926241218,-400.0,0.00016438,2]
[378612025,1754926241228,-400.0,0.00016438,2]
[378612027,1754926241237,-400.0,0.00016438,2]
[378612029,1754926241247,-517.33,0.00016438,2]
[378612031,1754926241256,-1027.85,0.00016438,2]
[378612033,1754926241266,-400.0,0.00016438,2]
[378612035,1754926241276,-400.0,0.00016438,2]
[378612037,1754926241285,-469.32,0.00016438,2]
[378612039,1754926241295,-460.0,0.00016438,2]
[378612041,1754926241304,-674.7,0.00016438,2]
[378612043,1754926241313,-400.0,0.00016438,2]
[378612045,1754926241323,-2880.91,0.00016438,2]
[378612047,1754926241332,-935.34,0.00016438,2]
[378612049,1754926241342,-400.0,0.00016438,2]
[378612051,1754926241354,-400.0,0.00016438,2]
[378612053,1754926241365,-400.0,0.00016438,2]
[378612055,1754926241374,-481.83,0.00016438,2]
[378612057,1754926241383,-400.0,0.00016438,2]
[378612059,1754926241393,-400.0,0.00016438,2]
[378612061,1754926241402,-400.0,0.00016438,2]
[378612063,1754926241412,-400.0,0.00016438,2]
[378612065,1754926241422,-400.0,0.00016438,2]
[378612067,1754926241434,-1049.29,0.00016438,2]
[378612069,1754926241451,-721.13,0.00016438,2]
[378612071,1754926241461,-421.79611535,0.00016438,2]
[378612073,1754926241471,-1097.96,0.00016438,2]
[378612075,1754926241480,-912.51,0.00016438,2]
[378612077,1754926241489,-400.0,0.00016438,2]
[378612079,1754926241499,-539.35,0.00016438,2]
[378612081,1754926241508,-500.97,0.00016438,2]
[378612083,1754926241519,-400.0,0.00016438,2]
[378612085,1754926241529,-590.81,0.00016438,2]
[378612087,1754926241541,-400.0,0.00016438,2]
[378612089,1754926241555,-400.0,0.00016438,2]
[378612091,1754926241565,-6283.08,0.00016438,2]
[378612093,1754926241575,-809.58,0.00016438,2]
[378612095,1754926241585,-585.01,0.00016438,2]
[378612097,1754926241595,-716.65,0.00016438,2]
[378612099,1754926241605,-506.61586848,0.00016438,2]
[378612101,1754926241615,-511.71383169,0.00016438,2]
[378612103,1754926241624,-400.0,0.00016438,2]
[378612105,1754926241634,-407.88,0.00016438,2]
[378612107,1754926241644,-400.0,0.00016438,2]
[378612109,1754926241654,-400.0,0.00016438,2]
[378612111,1754926241664,-434.32,0.00016438,2]
[378612113,1754926241674,-400.0,0.00016438,2]
[378612115,1754926241683,-747.85,0.00016438,2]
[378612117,1754926241693,-481.93,0.00016438,2]
[378612119,1754926241702,-400.0,0.00016438,2]
[378612121,1754926241717,-400.0,0.00016438,2]
[378612123,1754926241726,-400.0,0.00016438,2]
[378612125,1754926241735,-441.00843701,0.00016438,2]
[378612127,1754926241745,-476.61,0.00016438,2]
[378612129,1754926241754,-400.0,0.00016438,2]
[378612131,1754926241763,-400.0,0.00016438,2]
[378612133,1754926241773,-1392.26,0.00016438,2]
[378612135,1754926241782,-400.0,0.00016438,2]
[378612137,1754926241791,-400.0,0.00016438,2]
[378612139,1754926241801,-400.0,0.00016438,2]
[378612141,1754926241810,-1263.06,0.00016438,2]
[378612143,1754926241819,-621.37,0.00016438,2]
[378612145,1754926241829,-400.0,0.00016438,2]
[378612147,1754926241839,-403.44,0.00016438,2]
[378612149,1754926241848,-400.0,0.00016438,2]
[378612151,1754926241858,-400.0,0.00016438,2]
[378612153,1754926241867,-400.0,0.00016438,2]
[378612155,1754926241877,-564.84,0.00016438,2]
[378612157,1754926241886,-2672.96,0.00016438,2]
[378612159,1754926241895,-899.62,0.00016438,2]
[378612161,1754926241906,-400.0,0.00016438,2]
[378612163,1754926241915,-405.0,0.00016438,2]
[378612165,1754926241925,-977.13,0.00016438,2]
[378612167,1754926241934,-400.0,0.00016438,2]
[378612169,1754926241944,-400.0,0.00016438,2]
[378612171,1754926241953,-863.15,0.00016438,2]
[378612173,1754926241964,-1020.93,0.00016438,2]
[378612175,1754926241974,-400.0,0.00016438,2]
[378612177,1754926241984,-419.95,0.00016438,2]
[378612179,1754926241993,-400.0,0.00016438,2]
[378612181,1754926242003,-1307.25,0.00016438,2]
[378612183,1754926242012,-400.0,0.00016438,2]
[378612185,1754926242022,-853.37,0.00016438,2]
[378612187,1754926242032,-401.1653428,0.00016438,2]
[378612189,1754926242042,-400.0,0.00016438,2]
[378612191,1754926242052,-635.39,0.00016438,2]
[378612193,1754926242061,-400.0,0.00016438,2]
[378612195,1754926242071,-400.0,0.00016438,2]
[378612197,1754926242080,-400.0,0.00016438,2]
[378612199,1754926242090,-400.0,0.00016438,2]
[378612201,1754926242099,-151.0,0.00016438,2]
[378612203,1754926242108,-151.0,0.00016438,2]
[378612205,1754926242118,-151.0,0.00016438,2]
[378612207,1754926242127,-151.0,0.00016438,2]
[378612209,1754926242136,-1378.83,0.00016438,2]
[378612211,1754926242145,-1216.0,0.00016438,2]
[378612213,1754926242155,-704.51,0.00016438,2]
[378612215,1754926242164,-1216.0,0.00016438,2]
[378612217,1754926242173,-1438.0,0.00016438,2]
[378612219,1754926242183,-1216.0,0.00016438,2]
[378612221,1754926242192,-1216.0,0.00016438,2]
[378612223,1754926242202,-1216.0,0.00016438,2]
[378612224,1754926242213,-577.43,0.00016438,2]
[378612226,1754926242223,-995.6,0.00016438,2]
[378612228,1754926242232,-1216.0,0.00016438,2]
[378612230,1754926242243,-445.19,0.00016438,2]
[378612232,1754926242253,-1216.0,0.00016438,2]
[378612235,1754926242263,-1216.0,0.00016438,2]
[378612236,1754926242272,-1216.0,0.00016438,2]
[378612238,1754926242282,-1216.0,0.00016438,2]
[378612240,1754926242291,-1216.0,0.00016438,2]
[378612243,1754926242300,-403.56537614,0.00016438,2]
[378612245,1754926242309,-555.65935978,0.00016438,2]
[378612247,1754926242319,-2017.12,0.00016438,2]
[378612249,1754926242329,-400.0,0.00016438,2]
[378612251,1754926242339,-1216.0,0.00016438,2]
[378612253,1754926242350,-400.0,0.00016438,2]
[378612255,1754926242363,-625.56,0.00016438,2]
[378612257,1754926242372,-400.0,0.00016438,2]
[378612259,1754926242381,-885.38,0.00016438,2]
[378612261,1754926242391,-400.0,0.00016438,2]
[378612263,1754926242400,-460.0,0.00016438,2]
[378612265,1754926242409,-519.36,0.00016438,2]
[378612267,1754926242418,-400.0,0.00016438,2]
[378612269,1754926242428,-400.0,0.00016438,2]
[378612271,1754926242438,-400.0,0.00016438,2]
[378612273,1754926242447,-400.0,0.00016438,2]
[378612275,1754926242458,-400.0,0.00016438,2]
[378612277,1754926242467,-400.0,0.00016438,2]
[378612279,1754926242477,-539.43,0.00016438,2]
[378612281,1754926242486,-400.0,0.00016438,2]
[378612283,1754926242496,-400.0,0.00016438,2]
[378612285,1754926242505,-787.6,0.00016438,2]
[378612287,1754926242514,-480.0,0.00016438,2]
[378612289,1754926242523,-400.0,0.00016438,2]
[378612291,1754926242532,-400.0,0.00016438,2]
[378612293,1754926242541,-775.9,0.00016438,2]
[378612295,1754926242551,-1737.89,0.00016438,2]
[378612297,1754926242560,-510.64,0.00016438,2]
[378612299,1754926242569,-1205.64,0.00016438,2]
[378612301,1754926242583,-681.94,0.00016438,2]
[378612303,1754926242592,-400.0,0.00016438,2]
[378612305,1754926242601,-400.0,0.00016438,2]
[378612307,1754926242611,-400.0,0.00016438,2]
[378612309,1754926242621,-1074.33,0.00016438,2]
[378612311,1754926242630,-540.56,0.00016438,2]
[378612313,1754926242640,-682.857986,0.00016438,2]
[378612315,1754926242649,-749.1,0.00016438,2]
[378612316,1754926242659,-682.857986,0.00016438,2]
[378612319,1754926242669,-2310.51,0.00016438,2]
[378612320,1754926242678,-498.69,0.00016438,2]
[378612323,1754926242688,-410.51,0.00016438,2]
[378612324,1754926242698,-400.0,0.00016438,2]
[378612326,1754926242709,-549.24,0.00016438,2]
[378612328,1754926242718,-460.0,0.00016438,2]
[378612330,1754926242728,-400.0,0.00016438,2]
[378612332,1754926242737,-527.25,0.00016438,2]
[378612334,1754926242746,-470.07,0.00016438,2]
[378612336,1754926242755,-682.857986,0.00016438,2]
[378612338,1754926242764,-457.41,0.00016438,2]
[378612340,1754926242773,-400.0,0.00016438,2]
[378612342,1754926242782,-893.13,0.00016438,2]
[378612344,1754926242791,-400.0,0.00016438,2]
[378612346,1754926242800,-400.0,0.00016438,2]
[378612348,1754926242809,-682.857986,0.00016438,2]
[378612350,1754926242818,-543.14,0.00016438,2]
[378612352,1754926242827,-682.857986,0.00016438,2]
[378612354,1754926242837,-682.857986,0.00016438,2]
[378612356,1754926242845,-2906.83,0.00016438,2]
[378612358,1754926242855,-400.0,0.00016438,2]
[378612360,1754926242865,-400.0,0.00016438,2]
[378612362,1754926242874,-498.63,0.00016438,2]
[378612364,1754926242883,-400.0,0.00016438,2]
[378612366,1754926242892,-400.0,0.00016438,2]
[378612368,1754926242901,-677.68,0.00016438,2]
[378612370,1754926242910,-400.0,0.00016438,2]
[378612372,1754926242920,-400.0,0.00016438,2]
[378612374,1754926242929,-400.0,0.00016438,2]
[378612376,1754926242938,-400.0,0.00016438,2]
[378612378,1754926242947,-425.77,0.00016438,2]
[378612380,1754926242957,-400.0,0.00016438,2]
[378612382,1754926242966,-627.29,0.00016438,2]
[378612384,1754926242975,-400.0,0.00016438,2]
[378612386,1754926242985,-400.0,0.00016438,2]
[378612388,1754926242994,-2310.6,0.00016438,2]
[378612390,1754926243004,-1482.75,0.00016438,2]
[378612392,1754926243013,-4376.41,0.00016438,2]
[378612394,1754926243023,-1306.55,0.00016438,2]
[378612396,1754926243032,-912.27,0.00016438,2]
[378612398,1754926243041,-868.9,0.00016438,2]
[378612400,1754926243051,-400.0,0.00016438,2]
[378612402,1754926243060,-151.0,0.00016438,2]
[378612404,1754926243069,-400.0,0.00016438,2]
[378612406,1754926243079,-2958.27,0.00016438,2]
[378612408,1754926243089,-400.0,0.00016438,2]
[378612410,1754926243098,-838.56,0.00016438,2]
[378612412,1754926243107,-371.04581301,0.00016438,2]
[378612414,1754926243118,-400.0,0.00016438,2]
[378612416,1754926243127,-484.56829515,0.00016438,2]
[378612418,1754926243136,-400.0,0.00016438,2]
[378612420,1754926243146,-400.0,0.00016438,2]
[378612422,1754926243156,-400.0,0.00016438,2]
[378612424,1754926243166,-400.0,0.00016438,2]
[378612426,1754926243176,-400.0,0.00016438,2]
[378612428,1754926243186,-1150.35,0.00016438,2]
[378612430,1754926243196,-400.0,0.00016438,2]
[378612432,1754926243208,-541.22364336,0.00016438,2]
[378612434,1754926243222,-752.46,0.00016438,2]
[378612436,1754926243232,-503.21815634,0.00016438,2]
[378612438,1754926243242,-1681.83,0.00016438,2]
[378612440,1754926243252,-400.0,0.00016438,2]
[378612442,1754926243264,-400.0,0.00016438,2]
[378612444,1754926243273,-400.0,0.00016438,2]
[378612446,1754926243283,-403.36497423,0.00016438,2]
[378612448,1754926243293,-613.87,0.00016438,2]
[378612450,1754926243303,-969.54,0.00016438,2]
[378612452,1754926243312,-220.24380414,0.00016438,2]
[378612515,1754926244134,-179.75619586,0.00016438,2]
[378612517,1754926244144,-400.0,0.00016438,2]
[378612519,1754926244153,-550.97,0.00016438,2]
[378612521,1754926244164,-1032.65130814,0.00016438,2]
[378612599,1754926244902,-433.98869186,0.00016438,2]
[378612601,1754926244911,-454.01130814,0.00016438,2]
[378612639,1754926245259,-417.15869186,0.00016438,2]
[378612641,1754926245268,-21.45267665,0.00016438,2]
[378612645,1754926245292,-378.54732335,0.00016438,2]
[378612647,1754926245302,-491.78864987,0.00016438,2]
[378612649,1754926245314,-592.75,0.00016438,2]
[378612833,1754926247093,11839.04658372,0.00015624,2]
[378612837,1754926247117,15000.0,0.00015624,2]
[378612840,1754926247140,12948.29341628,0.00015624,2]
[378612868,1754926247404,-500.0,0.00016125,2]
[378612871,1754926247421,-472.25068028,0.00016125,2]
[378612873,1754926247436,-217.27845204,0.00016125,2]
[378612876,1754926247447,-500.0,0.00016125,2]
[378612878,1754926247456,-500.0,0.00016125,2]
[378612880,1754926247467,-383.31135013,0.00016438,2]
[378612882,1754926247476,-400.0,0.00016438,2]
[378612884,1754926247486,-2064.54,0.00016438,2]
[378612886,1754926247495,-151.0,0.00016438,2]
[378612888,1754926247505,-151.0,0.00016438,2]
[378612890,1754926247515,-151.0,0.00016438,2]
[378612892,1754926247525,-151.0,0.00016438,2]
[378612894,1754926247534,-573.10431755,0.00016438,2]
[378612915,1754926247732,-188.78568245,0.00016438,2]
[378612917,1754926247741,-374.89752081,0.00016438,2]
[378612920,1754926247758,-1113.31869319,0.00016438,2]
[378612922,1754926247769,-400.0,0.00016438,2]
[378612924,1754926247779,-557.65,0.00016438,2]
[378612926,1754926247788,-881.12171126,0.00016438,2]
[378612928,1754926247799,-1298.33828874,0.00016438,2]
[378612930,1754926247809,-400.0,0.00016438,2]
[378612932,1754926247819,-400.0,0.00016438,2]
[378612934,1754926247829,-542.01,0.00016438,2]
[378612936,1754926247839,-400.0,0.00016438,2]
[378612938,1754926247849,-701.07,0.00016438,2]
[378612940,1754926247859,-151.0,0.00016438,2]
[378612942,1754926247868,-151.0,0.00016438,2]
[378612944,1754926247877,-496.58171126,0.00016438,2]
[378612966,1754926248078,-1452.78828874,0.00016438,2]
[378612968,1754926248088,-291.91743224,0.00016438,2]
[378612970,1754926248099,-151.0,0.00016438,2]
[378612972,1754926248108,-151.0,0.00016438,2]
[378612974,1754926248119,-400.0,0.00016438,2]
[378612976,1754926248129,-431.97367563,0.00016438,2]
[378612979,1754926248142,-536.98632437,0.00016438,2]
[378612981,1754926248152,-803.28,0.00016438,2]
[378612983,1754926248162,-400.0,0.00016438,2]
[378612984,1754926248172,-4281.22,0.00016438,2]
[378612987,1754926248182,-371.97919224,0.00016438,2]
[378612994,1754926248242,-28.02080776,0.00016438,2]